[Event "Early-Titled-Tuesday-Blitz-April-16-2024"]
[Site "Chess.com"]
[Date "2024.04.16"]
[Round "3"]
[White "SahibSinghKnight"]
[Black "emeli_chess"]
[Result "1-0"]
[WhiteElo "2630"]
[BlackElo "2461"]
[TimeControl "180+1"]
[EndTime "8:28:12 PDT"]
[Termination "SahibSinghKnight won by resignation"]

1. e4 {[%clk 0:03:00.9]} 1... e5 {[%clk 0:02:59]} 2. Nf3 {[%clk 0:03:00.7]} 2...
Nc6 {[%clk 0:02:59.1]} 3. Bb5 {[%clk 0:03:00.9]} 3... a6 {[%clk 0:02:58.3]} 4.
Ba4 {[%clk 0:03:01.2]} 4... Nf6 {[%clk 0:02:58.1]} 5. O-O {[%clk 0:03:01.2]}
5... Nxe4 {[%clk 0:02:58.4]} 6. d4 {[%clk 0:03:00.2]} 6... b5 {[%clk 0:02:58.5]}
7. Bb3 {[%clk 0:02:59.5]} 7... d5 {[%clk 0:02:59.2]} 8. dxe5 {[%clk 0:03:00.2]}
8... Be6 {[%clk 0:02:59.8]} 9. Nbd2 {[%clk 0:03:00.8]} 9... Bc5 {[%clk
0:02:59.6]} 10. Qe2 {[%clk 0:02:59.8]} 10... Bf5 {[%clk 0:02:55.4]} 11. c3
{[%clk 0:02:54.8]} 11... O-O {[%clk 0:02:29.2]} 12. Nxe4 {[%clk 0:02:11.2]}
12... dxe4 {[%clk 0:02:06.2]} 13. Ng5 {[%clk 0:02:05.2]} 13... Qd3 {[%clk
0:02:03.1]} 14. Qxd3 {[%clk 0:01:59.5]} 14... exd3 {[%clk 0:02:02.3]} 15. Be3
{[%clk 0:01:28.9]} 15... Bb6 {[%clk 0:01:38.7]} 16. Bd5 {[%clk 0:01:26.1]} 16...
Nxe5 {[%clk 0:01:28.7]} 17. Bxa8 {[%clk 0:01:21.7]} 17... Rxa8 {[%clk
0:01:28.4]} 18. Bxb6 {[%clk 0:01:17.9]} 18... cxb6 {[%clk 0:01:28.2]} 19. Rad1
{[%clk 0:01:14.3]} 19... f6 {[%clk 0:01:24.2]} 20. Nf3 {[%clk 0:01:09.6]} 20...
Nxf3+ {[%clk 0:01:23.8]} 21. gxf3 {[%clk 0:01:10]} 21... Re8 {[%clk 0:01:16.5]}
22. Rfe1 {[%clk 0:01:10]} 22... Re2 {[%clk 0:01:16]} 23. Rxe2 {[%clk 0:01:03.6]}
23... dxe2 {[%clk 0:01:16.3]} 24. Re1 {[%clk 0:01:03.8]} 24... Bd3 {[%clk
0:01:16.5]} 25. f4 {[%clk 0:00:48.9]} 25... Kf7 {[%clk 0:01:07.9]} 26. f3 {[%clk
0:00:48.8]} 26... a5 {[%clk 0:00:56.9]} 27. Kf2 {[%clk 0:00:48.5]} 27... b4
{[%clk 0:00:57]} 28. cxb4 {[%clk 0:00:47.2]} 28... axb4 {[%clk 0:00:56.8]} 29.
Rc1 {[%clk 0:00:40.5]} 29... Kg6 {[%clk 0:00:46]} 30. Rc7 {[%clk 0:00:34.8]}
30... h5 {[%clk 0:00:44.8]} 31. Rb7 {[%clk 0:00:34.2]} 31... h4 {[%clk
0:00:42.5]} 32. Rxb6 {[%clk 0:00:32]} 32... Kf5 {[%clk 0:00:42]} 33. Rd6 {[%clk
0:00:31.4]} 33... Bc4 {[%clk 0:00:40.2]} 34. b3 {[%clk 0:00:31.1]} 1-0

[Event "Early-Titled-Tuesday-Blitz-April-16-2024"]
[Site "Chess.com"]
[Date "2024.04.16"]
[Round "3"]
[White "wonderfultime"]
[Black "biostatistician"]
[Result "1-0"]
[WhiteElo "2994"]
[BlackElo "2617"]
[TimeControl "180+1"]
[EndTime "8:28:14 PDT"]
[Termination "wonderfultime won by resignation"]

1. d4 {[%clk 0:02:56.5]} 1... Nf6 {[%clk 0:02:59.1]} 2. Nf3 {[%clk 0:02:52.2]}
2... g6 {[%clk 0:02:58.8]} 3. Bg5 {[%clk 0:02:50.1]} 3... Bg7 {[%clk 0:02:58.9]}
4. Nbd2 {[%clk 0:02:50.4]} 4... O-O {[%clk 0:02:59]} 5. c3 {[%clk 0:02:50.4]}
5... b6 {[%clk 0:02:57.2]} 6. e4 {[%clk 0:02:47.8]} 6... Bb7 {[%clk 0:02:57.4]}
7. e5 {[%clk 0:02:45.9]} 7... Ne4 {[%clk 0:02:56.9]} 8. Nxe4 {[%clk 0:02:41.3]}
8... Bxe4 {[%clk 0:02:57.8]} 9. Bc4 {[%clk 0:02:31.2]} 9... d5 {[%clk
0:02:52.3]} 10. Bd3 {[%clk 0:02:27.6]} 10... c5 {[%clk 0:02:42.9]} 11. Qe2
{[%clk 0:02:06.6]} 11... Bxd3 {[%clk 0:02:23.5]} 12. Qxd3 {[%clk 0:02:07.1]}
12... Nc6 {[%clk 0:02:23.4]} 13. O-O {[%clk 0:02:02]} 13... f6 {[%clk
0:02:15.6]} 14. exf6 {[%clk 0:02:01.4]} 14... exf6 {[%clk 0:02:16.5]} 15. Bf4
{[%clk 0:01:48.4]} 15... c4 {[%clk 0:02:16.2]} 16. Qc2 {[%clk 0:01:45.9]} 16...
Qd7 {[%clk 0:02:12.9]} 17. Rfe1 {[%clk 0:01:45.5]} 17... Rfe8 {[%clk 0:02:12.4]}
18. h4 {[%clk 0:01:44.9]} 18... b5 {[%clk 0:02:04.3]} 19. b3 {[%clk 0:01:38.3]}
19... Rxe1+ {[%clk 0:01:48.4]} 20. Rxe1 {[%clk 0:01:37.7]} 20... Re8 {[%clk
0:01:49.3]} 21. Rxe8+ {[%clk 0:01:34.7]} 21... Qxe8 {[%clk 0:01:50.2]} 22. bxc4
{[%clk 0:01:35.1]} 22... dxc4 {[%clk 0:01:50]} 23. d5 {[%clk 0:01:32.8]} 23...
Ne5 {[%clk 0:01:42.6]} 24. Bxe5 {[%clk 0:01:31.7]} 24... fxe5 {[%clk 0:01:43.5]}
25. Qe4 {[%clk 0:01:20.4]} 25... Qe7 {[%clk 0:01:29.6]} 26. g3 {[%clk
0:01:19.6]} 26... Qa3 {[%clk 0:01:26]} 27. Qg4 {[%clk 0:01:14.5]} 27... e4
{[%clk 0:01:01.1]} 28. Qe6+ {[%clk 0:01:10.6]} 28... Kh8 {[%clk 0:00:19.5]} 29.
Ng5 {[%clk 0:01:11.3]} 29... h6 {[%clk 0:00:16.5]} 30. Nxe4 {[%clk 0:00:57.1]}
30... Qxa2 {[%clk 0:00:13.8]} 31. d6 {[%clk 0:00:54.3]} 31... Qa6 {[%clk
0:00:08.5]} 32. Qe8+ {[%clk 0:00:52.8]} 32... Kh7 {[%clk 0:00:08.6]} 33. d7
{[%clk 0:00:53.5]} 1-0

[Event "Early-Titled-Tuesday-Blitz-April-16-2024"]
[Site "Chess.com"]
[Date "2024.04.16"]
[Round "3"]
[White "HighLawView"]
[Black "kekic76"]
[Result "0-1"]
[WhiteElo "2099"]
[BlackElo "2356"]
[TimeControl "180+1"]
[EndTime "8:28:15 PDT"]
[Termination "kekic76 won by resignation"]

1. e4 {[%clk 0:03:00.9]} 1... c6 {[%clk 0:02:59.5]} 2. Nc3 {[%clk 0:02:58.6]}
2... d5 {[%clk 0:02:58.8]} 3. Nf3 {[%clk 0:02:58]} 3... Bg4 {[%clk 0:02:58.4]}
4. h3 {[%clk 0:02:57.3]} 4... Bh5 {[%clk 0:02:57.8]} 5. Be2 {[%clk 0:02:41]}
5... e6 {[%clk 0:02:52.8]} 6. O-O {[%clk 0:02:38]} 6... Nf6 {[%clk 0:02:51.3]}
7. d3 {[%clk 0:02:28]} 7... Be7 {[%clk 0:02:43.2]} 8. Bf4 {[%clk 0:02:26.7]}
8... O-O {[%clk 0:02:41.3]} 9. Qd2 {[%clk 0:02:15.3]} 9... dxe4 {[%clk
0:02:30.2]} 10. dxe4 {[%clk 0:02:11.2]} 10... Qxd2 {[%clk 0:02:27.6]} 11. Bxd2
{[%clk 0:02:10.7]} 11... Nbd7 {[%clk 0:02:27.6]} 12. Bf4 {[%clk 0:02:08.1]}
12... Nc5 {[%clk 0:02:24.7]} 13. e5 {[%clk 0:02:03.4]} 13... Nd5 {[%clk
0:02:23.5]} 14. Bg3 {[%clk 0:01:52.6]} 14... Nxc3 {[%clk 0:02:14.8]} 15. bxc3
{[%clk 0:01:53.5]} 15... Ne4 {[%clk 0:02:14.5]} 16. Rab1 {[%clk 0:01:44.8]}
16... Bxf3 {[%clk 0:02:09.9]} 17. Bxf3 {[%clk 0:01:42.7]} 17... Nd2 {[%clk
0:02:10.3]} 18. Rxb7 {[%clk 0:01:41.2]} 18... Nxf1 {[%clk 0:01:52]} 19. Kxf1
{[%clk 0:01:36.8]} 19... Bc5 {[%clk 0:01:27.7]} 20. Bxc6 {[%clk 0:01:36]} 20...
Rac8 {[%clk 0:01:26.9]} 21. Be4 {[%clk 0:01:32.4]} 21... Bb6 {[%clk 0:01:22]}
22. Bd3 {[%clk 0:01:23.6]} 22... Rxc3 {[%clk 0:01:19.9]} 23. Bh4 {[%clk
0:01:23.1]} 23... g6 {[%clk 0:00:41.1]} 24. a3 {[%clk 0:01:21.8]} 24... h5
{[%clk 0:00:37.8]} 25. Bf6 {[%clk 0:01:17.7]} 25... Rfc8 {[%clk 0:00:33.5]} 26.
a4 {[%clk 0:01:12.4]} 26... R3c7 {[%clk 0:00:32.3]} 27. Rxc7 {[%clk 0:01:05.4]}
27... Rxc7 {[%clk 0:00:33.2]} 28. Ke2 {[%clk 0:01:04.4]} 28... Rc5 {[%clk
0:00:27.9]} 29. g4 {[%clk 0:01:01.5]} 29... hxg4 {[%clk 0:00:25.1]} 30. hxg4
{[%clk 0:01:02.4]} 30... Ra5 {[%clk 0:00:25.3]} 31. Bb5 {[%clk 0:00:59.2]} 31...
a6 {[%clk 0:00:25.4]} 32. Bd7 {[%clk 0:00:55.6]} 32... Rc5 {[%clk 0:00:21.3]}
33. Bc8 {[%clk 0:00:45.8]} 33... Rxc8 {[%clk 0:00:20.8]} 0-1

[Event "Early-Titled-Tuesday-Blitz-April-16-2024"]
[Site "Chess.com"]
[Date "2024.04.16"]
[Round "3"]
[White "Predator0608"]
[Black "HanSchut"]
[Result "1-0"]
[WhiteElo "2567"]
[BlackElo "2310"]
[TimeControl "180+1"]
[EndTime "8:28:18 PDT"]
[Termination "Predator0608 won by resignation"]

1. f4 {[%clk 0:03:00.9]} 1... d5 {[%clk 0:02:58]} 2. Nf3 {[%clk 0:03:01.2]} 2...
g6 {[%clk 0:02:56.9]} 3. g3 {[%clk 0:03:01.4]} 3... Nh6 {[%clk 0:02:55.9]} 4.
Bg2 {[%clk 0:03:01.7]} 4... Bg7 {[%clk 0:02:56.6]} 5. O-O {[%clk 0:03:02]} 5...
O-O {[%clk 0:02:57.2]} 6. d3 {[%clk 0:03:02.4]} 6... f6 {[%clk 0:02:57.7]} 7. e4
{[%clk 0:03:02.8]} 7... c6 {[%clk 0:02:56.4]} 8. Nc3 {[%clk 0:03:02.6]} 8... Nf7
{[%clk 0:02:56.4]} 9. d4 {[%clk 0:03:01.6]} 9... dxe4 {[%clk 0:02:41.8]} 10.
Nxe4 {[%clk 0:03:02.5]} 10... e5 {[%clk 0:02:33.5]} 11. dxe5 {[%clk 0:02:49.7]}
11... fxe5 {[%clk 0:02:34.4]} 12. fxe5 {[%clk 0:02:42.4]} 12... Nxe5 {[%clk
0:02:34]} 13. Nxe5 {[%clk 0:02:39.2]} 13... Bxe5 {[%clk 0:02:29.2]} 14. Qxd8
{[%clk 0:02:38.1]} 14... Rxd8 {[%clk 0:02:28.2]} 15. Bg5 {[%clk 0:02:39]} 15...
Re8 {[%clk 0:02:09.4]} 16. Rae1 {[%clk 0:02:28.1]} 16... Bd7 {[%clk 0:01:53.1]}
17. Bf6 {[%clk 0:02:17.2]} 17... Bc7 {[%clk 0:01:40.4]} 18. Bd4 {[%clk 0:01:59]}
18... Bd8 {[%clk 0:01:21.3]} 19. Nd6 {[%clk 0:01:14.1]} 19... Rxe1 {[%clk
0:01:07.8]} 20. Rxe1 {[%clk 0:01:15]} 20... Na6 {[%clk 0:01:08.3]} 21. Nxb7
{[%clk 0:01:08.2]} 21... Nb4 {[%clk 0:00:46.1]} 22. Bc5 {[%clk 0:00:24]} 22...
Bb6 {[%clk 0:00:30.2]} 23. Rd1 {[%clk 0:00:22]} 23... Bf5 {[%clk 0:00:20.6]} 24.
c3 {[%clk 0:00:19.6]} 24... Nd3 {[%clk 0:00:18.9]} 25. Bxb6 {[%clk 0:00:19.2]}
25... axb6 {[%clk 0:00:19.8]} 26. Nd6 {[%clk 0:00:20.1]} 26... Rd8 {[%clk
0:00:14.3]} 27. Nxf5 {[%clk 0:00:19.4]} 27... gxf5 {[%clk 0:00:15.2]} 28. Bf1
{[%clk 0:00:19.8]} 1-0

[Event "Early-Titled-Tuesday-Blitz-April-16-2024"]
[Site "Chess.com"]
[Date "2024.04.16"]
[Round "3"]
[White "AsaHoffmann"]
[Black "RafalBRC"]
[Result "1-0"]
[WhiteElo "2403"]
[BlackElo "2191"]
[TimeControl "180+1"]
[EndTime "8:28:18 PDT"]
[Termination "AsaHoffmann won on time"]

1. d4 {[%clk 0:02:56.4]} 1... Nf6 {[%clk 0:02:30.5]} 2. Bg5 {[%clk 0:02:55.2]}
2... d5 {[%clk 0:02:29]} 3. Nd2 {[%clk 0:02:54.6]} 3... Nbd7 {[%clk 0:02:22.4]}
4. f4 {[%clk 0:02:53.3]} 4... c5 {[%clk 0:02:21.7]} 5. c3 {[%clk 0:02:52.4]}
5... Qb6 {[%clk 0:02:21.2]} 6. Qb3 {[%clk 0:02:46.2]} 6... cxd4 {[%clk
0:02:18.5]} 7. Qxb6 {[%clk 0:02:45.2]} 7... Nxb6 {[%clk 0:02:17.6]} 8. cxd4
{[%clk 0:02:45.2]} 8... Bd7 {[%clk 0:02:16]} 9. e3 {[%clk 0:02:44.5]} 9... Rc8
{[%clk 0:02:14.7]} 10. Bd3 {[%clk 0:02:41.9]} 10... e6 {[%clk 0:02:14.6]} 11. a3
{[%clk 0:02:39.9]} 11... Na4 {[%clk 0:02:12.3]} 12. Rb1 {[%clk 0:02:36.4]} 12...
Ng4 {[%clk 0:02:09.5]} 13. Ke2 {[%clk 0:02:32.6]} 13... h6 {[%clk 0:02:09.2]}
14. Bh4 {[%clk 0:02:32]} 14... Bxa3 {[%clk 0:01:41.9]} 15. bxa3 {[%clk
0:02:26.8]} 15... Nc3+ {[%clk 0:01:41.9]} 16. Kf3 {[%clk 0:02:26.5]} 16... Nxb1
{[%clk 0:01:41.7]} 17. Nxb1 {[%clk 0:02:21.3]} 17... Rc1 {[%clk 0:01:36.7]} 18.
Nd2 {[%clk 0:01:56]} 18... g5 {[%clk 0:01:27.9]} 19. Bg3 {[%clk 0:01:51.4]}
19... f5 {[%clk 0:01:25.2]} 20. h3 {[%clk 0:01:46.7]} 20... gxf4 {[%clk
0:01:12.9]} 21. Bxf4 {[%clk 0:01:45.5]} 21... h5 {[%clk 0:01:12.5]} 22. Be2
{[%clk 0:01:18.9]} 22... Rc3 {[%clk 0:01:08]} 23. Be5 {[%clk 0:01:08.9]} 23...
Rxe3+ {[%clk 0:01:06.8]} 24. Kf4 {[%clk 0:01:08.5]} 24... Rxe5 {[%clk
0:00:12.8]} 25. dxe5 {[%clk 0:01:03.9]} 25... Nf2 {[%clk 0:00:13]} 26. Rh2
{[%clk 0:01:01.1]} 26... Rg8 {[%clk 0:00:08.8]} 27. g3 {[%clk 0:01:00.7]} 27...
Ne4 {[%clk 0:00:07.9]} 28. Bxh5+ {[%clk 0:01:00.1]} 28... Kd8 {[%clk 0:00:07.8]}
29. Nxe4 {[%clk 0:01:00.1]} 29... fxe4 {[%clk 0:00:08.1]} 30. Bg4 {[%clk
0:00:57.5]} 30... b5 {[%clk 0:00:07]} 31. Ne2 {[%clk 0:00:57.4]} 31... a5 {[%clk
0:00:06.4]} 32. Nd4 {[%clk 0:00:57.4]} 32... Ke7 {[%clk 0:00:06.2]} 33. Rc2
{[%clk 0:00:56.5]} 33... b4 {[%clk 0:00:05]} 34. axb4 {[%clk 0:00:56.1]} 34...
axb4 {[%clk 0:00:05]} 35. Rc7 {[%clk 0:00:55.9]} 35... b3 {[%clk 0:00:05.4]} 36.
Bxe6 {[%clk 0:00:54.8]} 36... b2 {[%clk 0:00:04.1]} 37. Rxd7+ {[%clk 0:00:54.1]}
37... Kf8 {[%clk 0:00:04.3]} 38. Rb7 {[%clk 0:00:53.7]} 1-0

[Event "Early-Titled-Tuesday-Blitz-April-16-2024"]
[Site "Chess.com"]
[Date "2024.04.16"]
[Round "3"]
[White "AndrewB92"]
[Black "HajiyevKanan"]
[Result "0-1"]
[WhiteElo "2462"]
[BlackElo "2633"]
[TimeControl "180+1"]
[EndTime "8:28:22 PDT"]
[Termination "HajiyevKanan won on time"]

1. d4 {[%clk 0:02:58.8]} 1... d5 {[%clk 0:02:58.9]} 2. c4 {[%clk 0:02:58.3]}
2... c6 {[%clk 0:02:59.4]} 3. Nf3 {[%clk 0:02:58.4]} 3... Nf6 {[%clk 0:02:59.9]}
4. Nc3 {[%clk 0:02:58.3]} 4... a6 {[%clk 0:03:00.5]} 5. e3 {[%clk 0:02:57.6]}
5... Bg4 {[%clk 0:03:00.2]} 6. Be2 {[%clk 0:02:57.5]} 6... e6 {[%clk 0:03:00.3]}
7. h3 {[%clk 0:02:57.4]} 7... Bxf3 {[%clk 0:03:00.9]} 8. Bxf3 {[%clk 0:02:57]}
8... Bd6 {[%clk 0:02:58.5]} 9. b3 {[%clk 0:02:54.5]} 9... O-O {[%clk 0:02:58]}
10. O-O {[%clk 0:02:53]} 10... Qe7 {[%clk 0:02:57.1]} 11. Bb2 {[%clk 0:02:48.7]}
11... Ba3 {[%clk 0:02:54.6]} 12. Rb1 {[%clk 0:02:43.2]} 12... Bxb2 {[%clk
0:02:54.5]} 13. Rxb2 {[%clk 0:02:43.2]} 13... Qb4 {[%clk 0:02:54.6]} 14. Qd2
{[%clk 0:02:38.8]} 14... Nbd7 {[%clk 0:02:54.8]} 15. e4 {[%clk 0:02:23.7]} 15...
dxe4 {[%clk 0:02:54.1]} 16. Nxe4 {[%clk 0:02:21.2]} 16... Qxd2 {[%clk
0:02:53.5]} 17. Nxf6+ {[%clk 0:02:12.6]} 17... Nxf6 {[%clk 0:02:54.4]} 18. Rxd2
{[%clk 0:02:12.6]} 18... Rad8 {[%clk 0:02:51.9]} 19. Rfd1 {[%clk 0:02:04.1]}
19... Rd7 {[%clk 0:02:52.4]} 20. Kf1 {[%clk 0:02:03.7]} 20... Rfd8 {[%clk
0:02:52]} 21. Ke2 {[%clk 0:02:03.8]} 21... Kf8 {[%clk 0:02:52.6]} 22. g4 {[%clk
0:02:03.3]} 22... g5 {[%clk 0:02:52.1]} 23. Ke3 {[%clk 0:01:57.5]} 23... Ng8
{[%clk 0:02:48]} 24. Be4 {[%clk 0:01:55.4]} 24... Kg7 {[%clk 0:02:45.3]} 25. f4
{[%clk 0:01:24.9]} 25... h6 {[%clk 0:02:41.1]} 26. c5 {[%clk 0:01:08.4]} 26...
Nf6 {[%clk 0:02:32.8]} 27. b4 {[%clk 0:01:00.1]} 27... Nd5+ {[%clk 0:02:18.9]}
28. Bxd5 {[%clk 0:00:59.7]} 28... Rxd5 {[%clk 0:02:19.1]} 29. fxg5 {[%clk
0:00:55.4]} 29... hxg5 {[%clk 0:02:18.6]} 30. a4 {[%clk 0:00:49.1]} 30... Rh8
{[%clk 0:02:18.6]} 31. Rh1 {[%clk 0:00:49.1]} 31... Rhd8 {[%clk 0:02:18.1]} 32.
Rhd1 {[%clk 0:00:48.4]} 32... Rh8 {[%clk 0:02:16]} 33. Rh1 {[%clk 0:00:47.8]}
33... f5 {[%clk 0:02:06.2]} 34. gxf5 {[%clk 0:00:46.4]} 34... exf5 {[%clk
0:02:07.1]} 35. Rg2 {[%clk 0:00:40.2]} 35... Kf6 {[%clk 0:02:07]} 36. b5 {[%clk
0:00:32.6]} 36... axb5 {[%clk 0:02:05.9]} 37. axb5 {[%clk 0:00:33.5]} 37... Re8+
{[%clk 0:02:06.6]} 38. Kd3 {[%clk 0:00:31.9]} 38... Re4 {[%clk 0:02:06.8]} 39.
bxc6 {[%clk 0:00:15.6]} 39... Rdxd4+ {[%clk 0:02:06.9]} 40. Kc3 {[%clk 0:00:15]}
40... Rc4+ {[%clk 0:02:07.6]} 41. Kb3 {[%clk 0:00:12.9]} 41... bxc6 {[%clk
0:02:08.1]} 42. Rc2 {[%clk 0:00:11.7]} 42... Rxc2 {[%clk 0:02:05.6]} 43. Kxc2
{[%clk 0:00:12.6]} 43... Rc4+ {[%clk 0:02:06]} 44. Kd3 {[%clk 0:00:11.6]} 44...
Rxc5 {[%clk 0:02:06.9]} 45. Kd4 {[%clk 0:00:11.5]} 45... Rd5+ {[%clk 0:02:05.9]}
46. Ke3 {[%clk 0:00:12]} 46... Ke5 {[%clk 0:02:04.5]} 47. Ra1 {[%clk 0:00:11.9]}
47... f4+ {[%clk 0:02:04.3]} 48. Kf2 {[%clk 0:00:11.6]} 48... c5 {[%clk
0:01:59.8]} 49. Ra8 {[%clk 0:00:11.8]} 49... Rd2+ {[%clk 0:01:59]} 50. Kf3
{[%clk 0:00:11.3]} 50... Rd3+ {[%clk 0:01:59.5]} 51. Kg2 {[%clk 0:00:11.7]}
51... Rg3+ {[%clk 0:01:59.3]} 52. Kh2 {[%clk 0:00:12.1]} 52... c4 {[%clk
0:01:59.9]} 53. Re8+ {[%clk 0:00:06.5]} 53... Kd4 {[%clk 0:02:00]} 54. Rd8+
{[%clk 0:00:06.7]} 54... Kc5 {[%clk 0:01:58.6]} 55. Rc8+ {[%clk 0:00:05.4]}
55... Kb4 {[%clk 0:01:58.8]} 56. Rb8+ {[%clk 0:00:05.9]} 56... Ka3 {[%clk
0:01:58.3]} 57. h4 {[%clk 0:00:04.5]} 57... gxh4 {[%clk 0:01:58.1]} 58. Rf8
{[%clk 0:00:03.9]} 58... c3 {[%clk 0:01:53.1]} 59. Rxf4 {[%clk 0:00:02.8]} 59...
c2 {[%clk 0:01:53.3]} 60. Rxh4 {[%clk 0:00:02.7]} 60... Rc3 {[%clk 0:01:53.5]}
0-1

[Event "Early-Titled-Tuesday-Blitz-April-16-2024"]
[Site "Chess.com"]
[Date "2024.04.16"]
[Round "3"]
[White "Ramil_Faizrakhmanov"]
[Black "CrushingKings"]
[Result "1/2-1/2"]
[WhiteElo "2900"]
[BlackElo "2604"]
[TimeControl "180+1"]
[EndTime "8:28:25 PDT"]
[Termination "Game drawn - insufficient material"]

1. d4 {[%clk 0:02:59.9]} 1... g6 {[%clk 0:03:00.2]} 2. c4 {[%clk 0:02:59]} 2...
Bg7 {[%clk 0:03:00.2]} 3. e4 {[%clk 0:02:59.6]} 3... d6 {[%clk 0:03:00.2]} 4.
Nf3 {[%clk 0:02:58.9]} 4... Nd7 {[%clk 0:02:56.8]} 5. Nc3 {[%clk 0:02:58.3]}
5... e5 {[%clk 0:02:56.6]} 6. Be3 {[%clk 0:02:57.5]} 6... Bh6 {[%clk 0:02:55.6]}
7. Bxh6 {[%clk 0:02:57.1]} 7... Nxh6 {[%clk 0:02:55.5]} 8. Qd2 {[%clk 0:02:57]}
8... Ng4 {[%clk 0:02:54.8]} 9. h3 {[%clk 0:02:56.7]} 9... Ngf6 {[%clk
0:02:54.7]} 10. Qh6 {[%clk 0:02:49.3]} 10... exd4 {[%clk 0:02:54.1]} 11. Nxd4
{[%clk 0:02:49.1]} 11... Qe7 {[%clk 0:02:54.4]} 12. f3 {[%clk 0:02:46.4]} 12...
Qf8 {[%clk 0:02:50.7]} 13. Qxf8+ {[%clk 0:02:44]} 13... Kxf8 {[%clk 0:02:50.8]}
14. Nd5 {[%clk 0:02:43.6]} 14... Ne8 {[%clk 0:02:49.8]} 15. O-O-O {[%clk
0:02:42.9]} 15... a6 {[%clk 0:02:49]} 16. h4 {[%clk 0:02:41.6]} 16... h5 {[%clk
0:02:48.7]} 17. Be2 {[%clk 0:02:40.7]} 17... Kg7 {[%clk 0:02:48.9]} 18. b3
{[%clk 0:02:37]} 18... Nc5 {[%clk 0:02:48.9]} 19. b4 {[%clk 0:02:34.3]} 19...
Ne6 {[%clk 0:02:49]} 20. Kb2 {[%clk 0:02:33.4]} 20... Bd7 {[%clk 0:02:38.5]} 21.
a3 {[%clk 0:02:32.9]} 21... Rd8 {[%clk 0:02:04.5]} 22. Rd2 {[%clk 0:02:31.3]}
22... Nxd4 {[%clk 0:01:22.5]} 23. Rxd4 {[%clk 0:02:32.2]} 23... Be6 {[%clk
0:01:22.6]} 24. Rc1 {[%clk 0:02:30.5]} 24... Bxd5 {[%clk 0:01:21.9]} 25. cxd5
{[%clk 0:02:30.3]} 25... Rd7 {[%clk 0:01:22.5]} 26. b5 {[%clk 0:02:28]} 26... a5
{[%clk 0:01:11.5]} 27. b6 {[%clk 0:02:27.9]} 27... cxb6 {[%clk 0:01:12.1]} 28.
Bb5 {[%clk 0:02:28.3]} 28... Re7 {[%clk 0:01:07.9]} 29. Rdc4 {[%clk 0:02:27.6]}
29... f5 {[%clk 0:01:07]} 30. exf5 {[%clk 0:02:21.4]} 30... gxf5 {[%clk
0:01:07.2]} 31. Rc8 {[%clk 0:02:21.5]} 31... Nf6 {[%clk 0:01:02.5]} 32. R1c7
{[%clk 0:02:09.4]} 32... Nxd5 {[%clk 0:01:00.8]} 33. Rxe7+ {[%clk 0:02:09.6]}
33... Nxe7 {[%clk 0:01:00.7]} 34. Rc7 {[%clk 0:02:09.9]} 34... Kf6 {[%clk
0:01:00]} 35. Rxb7 {[%clk 0:02:10.1]} 35... Rg8 {[%clk 0:00:51.2]} 36. Rxb6
{[%clk 0:02:06.1]} 36... Rxg2+ {[%clk 0:00:51.2]} 37. Kb3 {[%clk 0:02:06.6]}
37... Ke5 {[%clk 0:00:48.7]} 38. Ra6 {[%clk 0:02:03.7]} 38... Rf2 {[%clk
0:00:42.3]} 39. Rxa5 {[%clk 0:02:03.4]} 39... Rxf3+ {[%clk 0:00:43]} 40. Kc2
{[%clk 0:02:03.3]} 40... Nd5 {[%clk 0:00:37]} 41. Be2 {[%clk 0:01:55.5]} 41...
Rh3 {[%clk 0:00:17]} 42. Bxh5 {[%clk 0:01:52.3]} 42... Rxh4 {[%clk 0:00:15.8]}
43. Bf7 {[%clk 0:01:51.3]} 43... Rc4+ {[%clk 0:00:15]} 44. Kd3 {[%clk
0:01:46.6]} 44... Rc3+ {[%clk 0:00:15.1]} 45. Kd2 {[%clk 0:01:46.5]} 45... Rc5
{[%clk 0:00:15.9]} 46. Rxc5 {[%clk 0:01:38.4]} 46... dxc5 {[%clk 0:00:16.8]} 47.
a4 {[%clk 0:01:38.8]} 47... Kd4 {[%clk 0:00:14.8]} 48. a5 {[%clk 0:01:37.4]}
48... Nb4 {[%clk 0:00:15]} 49. Ke2 {[%clk 0:01:31.1]} 49... c4 {[%clk
0:00:14.9]} 50. Kf3 {[%clk 0:01:30.5]} 50... c3 {[%clk 0:00:05.2]} 51. Bb3
{[%clk 0:01:31.4]} 51... Kc5 {[%clk 0:00:02.9]} 52. Kf4 {[%clk 0:01:30.3]} 52...
c2 {[%clk 0:00:03.2]} 53. Bxc2 {[%clk 0:01:30.4]} 53... Nxc2 {[%clk 0:00:04.1]}
54. Kxf5 {[%clk 0:01:30.7]} 54... Kb5 {[%clk 0:00:05]} 55. a6 {[%clk 0:01:30.9]}
55... Kxa6 {[%clk 0:00:05.6]} 1/2-1/2

[Event "Early-Titled-Tuesday-Blitz-April-16-2024"]
[Site "Chess.com"]
[Date "2024.04.16"]
[Round "3"]
[White "NigiriSushies"]
[Black "GlavkonVVS"]
[Result "1-0"]
[WhiteElo "2415"]
[BlackElo "2583"]
[TimeControl "180+1"]
[EndTime "8:28:28 PDT"]
[Termination "NigiriSushies won by resignation"]

1. e4 {[%clk 0:03:00.9]} 1... Nf6 {[%clk 0:02:59.6]} 2. e5 {[%clk 0:02:58.6]}
2... Nd5 {[%clk 0:02:56.6]} 3. d4 {[%clk 0:02:59.5]} 3... d6 {[%clk 0:02:40.6]}
4. exd6 {[%clk 0:02:59.5]} 4... cxd6 {[%clk 0:02:40.3]} 5. Nf3 {[%clk
0:02:58.6]} 5... Bg4 {[%clk 0:02:31.9]} 6. Be2 {[%clk 0:02:58.4]} 6... e6 {[%clk
0:02:27.7]} 7. h3 {[%clk 0:02:57.6]} 7... Bh5 {[%clk 0:02:27.2]} 8. O-O {[%clk
0:02:57.7]} 8... Be7 {[%clk 0:02:27.2]} 9. Nc3 {[%clk 0:02:58.2]} 9... Nxc3
{[%clk 0:02:24.4]} 10. bxc3 {[%clk 0:02:59.1]} 10... Nd7 {[%clk 0:02:23.3]} 11.
c4 {[%clk 0:02:59.1]} 11... Rc8 {[%clk 0:02:23]} 12. Ba3 {[%clk 0:02:57.1]}
12... Qa5 {[%clk 0:02:20.5]} 13. Qc1 {[%clk 0:02:55.1]} 13... O-O {[%clk
0:02:15.8]} 14. Rb1 {[%clk 0:02:54.5]} 14... Bxf3 {[%clk 0:02:06.9]} 15. Bxf3
{[%clk 0:02:51.9]} 15... b6 {[%clk 0:02:02.7]} 16. Be2 {[%clk 0:02:40.1]} 16...
e5 {[%clk 0:01:55]} 17. Rb5 {[%clk 0:02:28.3]} 17... Qa4 {[%clk 0:01:52.7]} 18.
dxe5 {[%clk 0:02:28]} 18... Nxe5 {[%clk 0:01:50.6]} 19. Rxe5 {[%clk 0:02:27.4]}
19... dxe5 {[%clk 0:01:49.9]} 20. Bxe7 {[%clk 0:02:28]} 20... Rfe8 {[%clk
0:01:48.9]} 21. Qa3 {[%clk 0:02:20]} 21... Qxc2 {[%clk 0:01:44.7]} 22. Bg4
{[%clk 0:02:16.5]} 22... Rc7 {[%clk 0:01:15.4]} 23. Bd6 {[%clk 0:02:11]} 23...
Rxc4 {[%clk 0:01:13.4]} 24. Qxa7 {[%clk 0:02:07.3]} 24... f5 {[%clk 0:01:06.1]}
25. Bh5 {[%clk 0:01:40.8]} 25... g6 {[%clk 0:00:58.1]} 26. Bd1 {[%clk
0:01:39.7]} 26... Qd3 {[%clk 0:00:54.2]} 27. Bxe5 {[%clk 0:01:22.7]} 27... Rxe5
{[%clk 0:00:27.5]} 28. Qb8+ {[%clk 0:01:20]} 28... Kg7 {[%clk 0:00:19.2]} 29.
Qxe5+ {[%clk 0:01:19.5]} 29... Kh6 {[%clk 0:00:19.6]} 30. Bb3 {[%clk 0:01:16.5]}
30... Re4 {[%clk 0:00:19]} 31. Qb8 {[%clk 0:01:02.5]} 31... Qd4 {[%clk
0:00:15.8]} 32. Qf8+ {[%clk 0:01:00.1]} 32... Kg5 {[%clk 0:00:15.8]} 33. Qf7
{[%clk 0:00:53.9]} 33... h5 {[%clk 0:00:15]} 34. Qd5 {[%clk 0:00:52]} 34... Qc3
{[%clk 0:00:11.8]} 35. Qd8+ {[%clk 0:00:35.7]} 35... Qf6 {[%clk 0:00:09.7]} 36.
f4+ {[%clk 0:00:33.5]} 36... Rxf4 {[%clk 0:00:08.4]} 37. Qxf6+ {[%clk
0:00:33.8]} 37... Kxf6 {[%clk 0:00:08.4]} 38. Rxf4 {[%clk 0:00:34.4]} 1-0